[Event "Titled Tuesday Blitz October 31 Early 2023"]
[White "Jackalhead_Anubis"]
[Black "Tatarinov, Dmitry"]
[BlackFideId "24160067"]
[WhiteElo "2396"]
[BlackElo "2751"]
[Result "0-1"]
[Round "4"]
[TimeControl "180+1"]
[Date "2023.10.31"]
[WhiteClock "0:00:43"]
[BlackClock "0:01:48"]
[Board "105"]

1. e4 {[%clk 0:02:56]}  c5 {[%clk 0:02:59]} 2. Nf3 {[%clk 0:02:56]}  d6 {[%clk 0:02:57]} 3. d4 {[%clk 0:02:54]}  cxd4 {[%clk 0:02:58]} 4. Nxd4 {[%clk 0:02:55]}  Nf6 {[%clk 0:02:58]} 5. Nc3 {[%clk 0:02:55]}  a6 {[%clk 0:02:54]} 6. Bg5 {[%clk 0:02:54]}  e6 {[%clk 0:02:52]} 7. f4 {[%clk 0:02:53]}  Nbd7 {[%clk 0:02:50]} 8. Qe2 {[%clk 0:02:51]}  Qc7 {[%clk 0:02:49]} 9. O-O-O {[%clk 0:02:50]}  b5 {[%clk 0:02:47]} 10. g4 {[%clk 0:02:22]}  Bb7 {[%clk 0:02:46]} 11. Bg2 {[%clk 0:02:12]}  Be7 {[%clk 0:02:40]} 12. e5 {[%clk 0:01:58]}  dxe5 {[%clk 0:02:34]} 13. Bxb7 {[%clk 0:01:58]}  exd4 {[%clk 0:02:32]} 14. Bxa8 {[%clk 0:01:56]}  dxc3 {[%clk 0:02:32]} 15. Qf3 {[%clk 0:01:46]}  cxb2+ {[%clk 0:02:30]} 16. Kb1 {[%clk 0:01:46]}  O-O {[%clk 0:02:29]} 17. Bxf6 {[%clk 0:01:40]}  Bxf6 {[%clk 0:02:10]} 18. g5 {[%clk 0:01:39]}  Be7 {[%clk 0:02:10]} 19. Qc6 {[%clk 0:01:36]}  Qxc6 {[%clk 0:02:07]} 20. Bxc6 {[%clk 0:01:36]}  Nc5 {[%clk 0:02:06]} 21. Kxb2 {[%clk 0:01:32]}  g6 {[%clk 0:02:05]} 22. c4 {[%clk 0:01:29]}  bxc4 {[%clk 0:02:02]} 23. Kc3 {[%clk 0:01:28]}  Rc8 {[%clk 0:02:02]} 24. Bd7 {[%clk 0:01:27]}  Rc7 {[%clk 0:02:00]} 25. Rd4 {[%clk 0:01:12]}  Nxd7 {[%clk 0:01:59]} 26. Rhd1 {[%clk 0:01:11]}  Nb6 {[%clk 0:02:00]} 27. Re4 {[%clk 0:01:06]}  Nd5+ {[%clk 0:02:00]} 28. Kd4 {[%clk 0:01:06]}  c3 {[%clk 0:01:58]} 29. Rc1 {[%clk 0:01:05]}  Bc5+ {[%clk 0:01:54]} 30. Ke5 {[%clk 0:01:04]}  Ba3 {[%clk 0:01:49]} 31. Rc2 {[%clk 0:00:57]}  Nb4 {[%clk 0:01:50]} 32. Kd6 {[%clk 0:00:50]}  Rc6+ {[%clk 0:01:48]} 33. Kd7 {[%clk 0:00:50]}  Nxc2 {[%clk 0:01:48]} 34. Kxc6 {[%clk 0:00:49]}  Nb4+ {[%clk 0:01:48]} 35. Kb7 {[%clk 0:00:43]}  c2 {[%clk 0:01:48]} 0-1


[Site "https://www.chess.com"]

[Event "Titled Tuesday Blitz October 31 Early 2023"]
[White "EvgenyBurmakin"]
[Black "BardArtem"]
[WhiteElo "2391"]
[BlackElo "2699"]
[Result "0-1"]
[Round "4"]
[TimeControl "180+1"]
[Date "2023.10.31"]
[WhiteClock "0:00:03"]
[BlackClock "0:00:12"]
[Board "107"]

1. e4 {[%clk 0:03:00]}  e5 {[%clk 0:02:58]} 2. Nf3 {[%clk 0:03:00]}  Nc6 {[%clk 0:02:58]} 3. Bb5 {[%clk 0:03:01]}  Nge7 {[%clk 0:02:58]} 4. c3 {[%clk 0:03:00]}  d5 {[%clk 0:02:56]} 5. exd5 {[%clk 0:02:54]}  Qxd5 {[%clk 0:02:55]} 6. Qe2 {[%clk 0:02:47]}  e4 {[%clk 0:02:44]} 7. Nd4 {[%clk 0:02:33]}  a6 {[%clk 0:02:43]} 8. Ba4 {[%clk 0:01:51]}  b5 {[%clk 0:02:33]} 9. Nxc6 {[%clk 0:01:49]}  bxa4 {[%clk 0:02:27]} 10. Nb4 {[%clk 0:01:49]}  Qe6 {[%clk 0:02:19]} 11. d3 {[%clk 0:01:43]}  a5 {[%clk 0:02:18]} 12. Nc2 {[%clk 0:01:35]}  exd3 {[%clk 0:02:16]} 13. Qxe6 {[%clk 0:01:33]}  Bxe6 {[%clk 0:02:17]} 14. Nd4 {[%clk 0:01:34]}  Bd7 {[%clk 0:02:17]} 15. Be3 {[%clk 0:01:31]}  Nd5 {[%clk 0:02:15]} 16. O-O {[%clk 0:01:26]}  Rb8 {[%clk 0:01:59]} 17. Re1 {[%clk 0:01:17]}  Kd8 {[%clk 0:01:31]} 18. Nd2 {[%clk 0:01:01]}  Nxe3 {[%clk 0:01:23]} 19. Rxe3 {[%clk 0:01:02]}  c5 {[%clk 0:01:16]} 20. N4f3 {[%clk 0:00:58]}  Rxb2 {[%clk 0:01:11]} 21. Rxd3 {[%clk 0:00:56]}  Kc7 {[%clk 0:01:02]} 22. Nc4 {[%clk 0:00:56]}  Rb8 {[%clk 0:01:01]} 23. Rad1 {[%clk 0:00:37]}  Bb5 {[%clk 0:00:56]} 24. Nfd2 {[%clk 0:00:31]}  Be7 {[%clk 0:00:56]} 25. Rf3 {[%clk 0:00:27]}  Bf6 {[%clk 0:00:54]} 26. Nxa5 {[%clk 0:00:26]}  Be2 {[%clk 0:00:54]} 27. Rxf6 {[%clk 0:00:19]}  gxf6 {[%clk 0:00:55]} 28. Re1 {[%clk 0:00:19]}  Rhd8 {[%clk 0:00:48]} 29. Nac4 {[%clk 0:00:16]}  Bxc4 {[%clk 0:00:41]} 30. Nxc4 {[%clk 0:00:17]}  Re8 {[%clk 0:00:40]} 31. Rc1 {[%clk 0:00:15]}  Re2 {[%clk 0:00:39]} 32. a3 {[%clk 0:00:14]}  Re4 {[%clk 0:00:30]} 33. Ne3 {[%clk 0:00:13]}  Kc6 {[%clk 0:00:30]} 34. g3 {[%clk 0:00:12]}  Rb3 {[%clk 0:00:30]} 35. Rd1 {[%clk 0:00:08]}  Rxc3 {[%clk 0:00:22]} 36. Rd8 {[%clk 0:00:08]}  Rxa3 {[%clk 0:00:19]} 37. Rc8+ {[%clk 0:00:08]}  Kd6 {[%clk 0:00:13]} 38. Kg2 {[%clk 0:00:03]}  Rexe3 {[%clk 0:00:09]} 39. fxe3 {[%clk 0:00:04]}  Ra1 {[%clk 0:00:09]} 40. Kf3 {[%clk 0:00:03]}  a3 {[%clk 0:00:10]} 41. Rd8+ {[%clk 0:00:02]}  Kc6 {[%clk 0:00:10]} 42. Ra8 {[%clk 0:00:03]}  a2 {[%clk 0:00:10]} 43. Kg2 {[%clk 0:00:03]}  Kb5 {[%clk 0:00:10]} 44. Rb8+ {[%clk 0:00:02]}  Kc4 {[%clk 0:00:10]} 45. Ra8 {[%clk 0:00:03]}  Kd3 {[%clk 0:00:11]} 46. e4 {[%clk 0:00:04]}  c4 {[%clk 0:00:11]} 47. Ra3+ {[%clk 0:00:04]}  c3 {[%clk 0:00:11]} 48. e5 {[%clk 0:00:05]}  fxe5 {[%clk 0:00:11]} 49. Kf3 {[%clk 0:00:05]}  e4+ {[%clk 0:00:11]} 50. Kg4 {[%clk 0:00:05]}  e3 {[%clk 0:00:12]} 51. Kg5 {[%clk 0:00:03]}  e2 {[%clk 0:00:12]} 0-1


[Site "https://www.chess.com"]

[Event "Titled Tuesday Blitz October 31 Early 2023"]
[White "Xtrmntr78"]
[Black "Haitin, Ilja"]
[BlackFideId "4501764"]
[WhiteElo "2668"]
[BlackElo "2386"]
[Result "0-1"]
[Round "4"]
[TimeControl "180+1"]
[Date "2023.10.31"]
[WhiteClock "0:00:00"]
[BlackClock "0:00:18"]
[Board "109"]

1. c4 {[%clk 0:03:00]}  e5 {[%clk 0:02:54]} 2. Nc3 {[%clk 0:03:00]}  Bb4 {[%clk 0:02:50]} 3. Nd5 {[%clk 0:03:00]}  Be7 {[%clk 0:02:44]} 4. Nf3 {[%clk 0:03:00]}  d6 {[%clk 0:02:43]} 5. d4 {[%clk 0:02:58]}  c6 {[%clk 0:02:42]} 6. Nc3 {[%clk 0:02:58]}  Nd7 {[%clk 0:02:39]} 7. g3 {[%clk 0:02:56]}  f5 {[%clk 0:02:33]} 8. Bg2 {[%clk 0:02:41]}  Ngf6 {[%clk 0:02:31]} 9. O-O {[%clk 0:02:25]}  e4 {[%clk 0:02:28]} 10. Nd2 {[%clk 0:02:24]}  d5 {[%clk 0:02:27]} 11. cxd5 {[%clk 0:02:19]}  cxd5 {[%clk 0:02:27]} 12. Qb3 {[%clk 0:02:19]}  Nb6 {[%clk 0:02:26]} 13. f3 {[%clk 0:02:16]}  Qd6 {[%clk 0:01:55]} 14. a4 {[%clk 0:02:01]}  Be6 {[%clk 0:01:33]} 15. a5 {[%clk 0:01:58]}  Nbd7 {[%clk 0:01:33]} 16. Qxb7 {[%clk 0:01:01]}  Rb8 {[%clk 0:01:09]} 17. Qxa7 {[%clk 0:01:01]}  O-O {[%clk 0:01:07]} 18. a6 {[%clk 0:00:34]}  Ra8 {[%clk 0:00:46]} 19. Qb7 {[%clk 0:00:34]}  Rfb8 {[%clk 0:00:47]} 20. Nb5 {[%clk 0:00:34]}  Rxb7 {[%clk 0:00:47]} 21. Nxd6 {[%clk 0:00:33]}  Bxd6 {[%clk 0:00:38]} 22. axb7 {[%clk 0:00:33]}  Rxa1 {[%clk 0:00:37]} 23. Nb3 {[%clk 0:00:27]}  Ra7 {[%clk 0:00:34]} 24. Nc5 {[%clk 0:00:18]}  Nxc5 {[%clk 0:00:20]} 25. dxc5 {[%clk 0:00:17]}  Bxc5+ {[%clk 0:00:19]} 26. Kh1 {[%clk 0:00:00]}  Rxb7 {[%clk 0:00:18]} 0-1


[Site "https://www.chess.com"]

[Event "Titled Tuesday Blitz October 31 Early 2023"]
[White "Fernandez, Michael"]
[Black "Arslanov, Shamil"]
[WhiteFideId "5803560"]
[BlackFideId "4192826"]
[WhiteElo "2385"]
[BlackElo "2621"]
[Result "0-1"]
[Round "4"]
[TimeControl "180+1"]
[Date "2023.10.31"]
[WhiteClock "0:00:04"]
[BlackClock "0:00:09"]
[Board "111"]

1. c4 {[%clk 0:03:00]}  d6 {[%clk 0:02:58]} 2. g3 {[%clk 0:02:58]}  e5 {[%clk 0:02:57]} 3. Nc3 {[%clk 0:02:57]}  f5 {[%clk 0:02:57]} 4. d4 {[%clk 0:02:51]}  Nc6 {[%clk 0:02:47]} 5. Nf3 {[%clk 0:02:48]}  e4 {[%clk 0:02:46]} 6. Nh4 {[%clk 0:02:48]}  Be7 {[%clk 0:02:37]} 7. e3 {[%clk 0:02:16]}  Bxh4 {[%clk 0:02:16]} 8. Qh5+ {[%clk 0:02:06]}  g6 {[%clk 0:02:16]} 9. Qxh4 {[%clk 0:02:07]}  Qxh4 {[%clk 0:02:15]} 10. gxh4 {[%clk 0:02:07]}  Nf6 {[%clk 0:02:04]} 11. Bg2 {[%clk 0:02:04]}  Nb4 {[%clk 0:01:50]} 12. Ke2 {[%clk 0:01:44]}  Be6 {[%clk 0:01:45]} 13. b3 {[%clk 0:01:26]}  Nd3 {[%clk 0:01:33]} 14. f3 {[%clk 0:01:22]}  O-O {[%clk 0:00:58]} 15. Ba3 {[%clk 0:01:00]}  Rae8 {[%clk 0:00:42]} 16. Raf1 {[%clk 0:00:36]}  exf3+ {[%clk 0:00:18]} 17. Bxf3 {[%clk 0:00:36]}  Nf4+ {[%clk 0:00:16]} 18. Kd2 {[%clk 0:00:23]}  N4h5 {[%clk 0:00:15]} 19. Bxb7 {[%clk 0:00:22]}  Rf7 {[%clk 0:00:15]} 20. Bc6 {[%clk 0:00:21]}  Bd7 {[%clk 0:00:16]} 21. Bxd7 {[%clk 0:00:20]}  Rxd7 {[%clk 0:00:16]} 22. c5 {[%clk 0:00:19]}  d5 {[%clk 0:00:12]} 23. c6 {[%clk 0:00:19]}  Rf7 {[%clk 0:00:12]} 24. Bc5 {[%clk 0:00:19]}  a6 {[%clk 0:00:12]} 25. b4 {[%clk 0:00:13]}  Re6 {[%clk 0:00:12]} 26. a4 {[%clk 0:00:14]}  Rxc6 {[%clk 0:00:12]} 27. b5 {[%clk 0:00:14]}  axb5 {[%clk 0:00:09]} 28. axb5 {[%clk 0:00:15]}  Re6 {[%clk 0:00:09]} 29. Ra1 {[%clk 0:00:16]}  f4 {[%clk 0:00:08]} 30. Ra8+ {[%clk 0:00:15]}  Kg7 {[%clk 0:00:08]} 31. exf4 {[%clk 0:00:14]}  Nxf4 {[%clk 0:00:09]} 32. Re1 {[%clk 0:00:14]}  Ne4+ {[%clk 0:00:09]} 33. Kc2 {[%clk 0:00:11]}  Ng2 {[%clk 0:00:08]} 34. Re2 {[%clk 0:00:09]}  Nf4 {[%clk 0:00:09]} 35. Re1 {[%clk 0:00:09]}  Nxc5 {[%clk 0:00:09]} 36. Rxe6 {[%clk 0:00:04]}  Ncxe6 {[%clk 0:00:09]} 0-1


[Site "https://www.chess.com"]

[Event "Titled Tuesday Blitz October 31 Early 2023"]
[White "Marcziter, Dmitrii"]
[Black "FoxOnTheRun97"]
[WhiteFideId "13900765"]
[WhiteElo "2382"]
[BlackElo "2594"]
[Result "0-1"]
[Round "4"]
[TimeControl "180+1"]
[Date "2023.10.31"]
[WhiteClock "0:00:00"]
[BlackClock "0:00:04"]
[Board "113"]

1. d4 {[%clk 0:03:00]}  Nf6 {[%clk 0:02:59]} 2. c4 {[%clk 0:03:00]}  e6 {[%clk 0:02:59]} 3. Nf3 {[%clk 0:03:00]}  d5 {[%clk 0:03:00]} 4. Bg5 {[%clk 0:02:59]}  h6 {[%clk 0:02:59]} 5. Bh4 {[%clk 0:02:57]}  g5 {[%clk 0:02:59]} 6. Bg3 {[%clk 0:02:57]}  Ne4 {[%clk 0:02:59]} 7. a3 {[%clk 0:02:54]}  Bg7 {[%clk 0:02:54]} 8. e3 {[%clk 0:02:52]}  Nd7 {[%clk 0:02:46]} 9. Nbd2 {[%clk 0:02:52]}  Nxg3 {[%clk 0:02:45]} 10. hxg3 {[%clk 0:02:51]}  c6 {[%clk 0:02:44]} 11. Bd3 {[%clk 0:02:50]}  Qe7 {[%clk 0:02:36]} 12. e4 {[%clk 0:02:46]}  dxe4 {[%clk 0:02:33]} 13. Nxe4 {[%clk 0:02:45]}  e5 {[%clk 0:02:28]} 14. dxe5 {[%clk 0:02:21]}  Nxe5 {[%clk 0:02:21]} 15. Nxe5 {[%clk 0:02:19]}  Qxe5 {[%clk 0:02:19]} 16. Qe2 {[%clk 0:02:17]}  O-O {[%clk 0:02:15]} 17. Nc3 {[%clk 0:02:10]}  Qxe2+ {[%clk 0:02:10]} 18. Kxe2 {[%clk 0:02:07]}  Re8+ {[%clk 0:02:08]} 19. Kd2 {[%clk 0:02:06]}  Be6 {[%clk 0:02:05]} 20. Kc2 {[%clk 0:02:02]}  Rad8 {[%clk 0:02:01]} 21. Rad1 {[%clk 0:02:00]}  Bg4 {[%clk 0:01:49]} 22. f3 {[%clk 0:01:58]}  Be6 {[%clk 0:01:40]} 23. g4 {[%clk 0:01:57]}  Kf8 {[%clk 0:01:39]} 24. Ne4 {[%clk 0:01:54]}  b6 {[%clk 0:01:27]} 25. b4 {[%clk 0:01:51]}  Rd4 {[%clk 0:01:18]} 26. c5 {[%clk 0:01:43]}  Red8 {[%clk 0:01:11]} 27. Be2 {[%clk 0:01:31]}  Ke7 {[%clk 0:00:54]} 28. Rxd4 {[%clk 0:01:28]}  Rxd4 {[%clk 0:00:55]} 29. Rd1 {[%clk 0:01:27]}  Bd5 {[%clk 0:00:43]} 30. Nd6 {[%clk 0:01:19]}  Rxd1 {[%clk 0:00:30]} 31. Bxd1 {[%clk 0:01:17]}  Kd7 {[%clk 0:00:25]} 32. Be2 {[%clk 0:01:09]}  bxc5 {[%clk 0:00:23]} 33. bxc5 {[%clk 0:01:08]}  Bf8 {[%clk 0:00:24]} 34. Nb7 {[%clk 0:00:49]}  Kc7 {[%clk 0:00:20]} 35. Ba6 {[%clk 0:00:49]}  Be7 {[%clk 0:00:12]} 36. Kc3 {[%clk 0:00:44]}  Be6 {[%clk 0:00:12]} 37. Nd6 {[%clk 0:00:16]}  Bxd6 {[%clk 0:00:12]} 38. cxd6+ {[%clk 0:00:16]}  Kxd6 {[%clk 0:00:13]} 39. Kd4 {[%clk 0:00:17]}  Bb3 {[%clk 0:00:12]} 40. Be2 {[%clk 0:00:14]}  f6 {[%clk 0:00:11]} 41. g3 {[%clk 0:00:13]}  Bc2 {[%clk 0:00:10]} 42. f4 {[%clk 0:00:13]}  c5+ {[%clk 0:00:10]} 43. Kc4 {[%clk 0:00:12]}  Be4 {[%clk 0:00:10]} 44. a4 {[%clk 0:00:11]}  Bc6 {[%clk 0:00:08]} 45. a5 {[%clk 0:00:11]}  a6 {[%clk 0:00:08]} 46. Bd1 {[%clk 0:00:10]}  Bb5+ {[%clk 0:00:08]} 47. Kc3 {[%clk 0:00:11]}  Kd5 {[%clk 0:00:08]} 48. Bf3+ {[%clk 0:00:11]}  Kd6 {[%clk 0:00:08]} 49. Bb7 {[%clk 0:00:11]}  Kc7 {[%clk 0:00:07]} 50. Be4 {[%clk 0:00:10]}  Be2 {[%clk 0:00:07]} 51. Bf5 {[%clk 0:00:09]}  Kc6 {[%clk 0:00:06]} 52. Kd2 {[%clk 0:00:03]}  Bf3 {[%clk 0:00:05]} 53. Ke3 {[%clk 0:00:04]}  Bd1 {[%clk 0:00:05]} 54. Kd2 {[%clk 0:00:04]}  Ba4 {[%clk 0:00:04]} 55. Bd3 {[%clk 0:00:01]}  Bb5 {[%clk 0:00:04]} 56. Be4+ {[%clk 0:00:00]}  Kd6 {[%clk 0:00:04]} 0-1


[Site "https://www.chess.com"]

[Event "Titled Tuesday Blitz October 31 Early 2023"]
[White "Aaditya Dhingra"]
[Black "Goswami, Vedant"]
[WhiteFideId "25678191"]
[BlackFideId "5003725"]
[WhiteElo "2572"]
[BlackElo "2371"]
[Result "1/2-1/2"]
[Round "4"]
[TimeControl "180+1"]
[Date "2023.10.31"]
[WhiteClock "0:00:03"]
[BlackClock "0:00:16"]
[Board "115"]

1. e4 {[%clk 0:03:00]}  e5 {[%clk 0:02:58]} 2. Nf3 {[%clk 0:03:00]}  Nc6 {[%clk 0:02:58]} 3. Bb5 {[%clk 0:03:00]}  a6 {[%clk 0:02:58]} 4. Ba4 {[%clk 0:03:00]}  Nf6 {[%clk 0:02:57]} 5. O-O {[%clk 0:03:00]}  b5 {[%clk 0:02:57]} 6. Bb3 {[%clk 0:02:59]}  Be7 {[%clk 0:02:57]} 7. d3 {[%clk 0:02:57]}  d6 {[%clk 0:02:56]} 8. a4 {[%clk 0:02:57]}  b4 {[%clk 0:02:47]} 9. h3 {[%clk 0:02:56]}  Na5 {[%clk 0:02:43]} 10. Ba2 {[%clk 0:02:55]}  c5 {[%clk 0:02:38]} 11. Nbd2 {[%clk 0:02:54]}  Be6 {[%clk 0:02:36]} 12. Bxe6 {[%clk 0:02:37]}  fxe6 {[%clk 0:02:35]} 13. Qe2 {[%clk 0:02:38]}  O-O {[%clk 0:02:32]} 14. Nc4 {[%clk 0:02:33]}  Nxc4 {[%clk 0:02:29]} 15. dxc4 {[%clk 0:02:34]}  Qe8 {[%clk 0:02:21]} 16. Nh2 {[%clk 0:02:18]}  Qg6 {[%clk 0:02:18]} 17. Re1 {[%clk 0:02:17]}  Rf7 {[%clk 0:02:12]} 18. Ng4 {[%clk 0:02:11]}  Raf8 {[%clk 0:01:56]} 19. Nxf6+ {[%clk 0:02:08]}  Rxf6 {[%clk 0:01:55]} 20. Rf1 {[%clk 0:02:08]}  Rf3 {[%clk 0:01:41]} 21. Kh2 {[%clk 0:01:57]}  Qh5 {[%clk 0:01:30]} 22. Qd1 {[%clk 0:01:26]}  Rxh3+ {[%clk 0:01:10]} 23. gxh3 {[%clk 0:01:25]}  Rf3 {[%clk 0:01:09]} 24. Qxf3 {[%clk 0:01:14]}  Qxf3 {[%clk 0:01:08]} 25. b3 {[%clk 0:01:08]}  Qxe4 {[%clk 0:00:56]} 26. Ra2 {[%clk 0:01:07]}  Qe2 {[%clk 0:00:49]} 27. Kg2 {[%clk 0:01:05]}  h6 {[%clk 0:00:42]} 28. Be3 {[%clk 0:01:03]}  Bg5 {[%clk 0:00:41]} 29. Bxg5 {[%clk 0:01:00]}  hxg5 {[%clk 0:00:41]} 30. Raa1 {[%clk 0:00:57]}  g4 {[%clk 0:00:41]} 31. hxg4 {[%clk 0:00:56]}  Qxg4+ {[%clk 0:00:40]} 32. Kh2 {[%clk 0:00:56]}  Qh5+ {[%clk 0:00:40]} 33. Kg3 {[%clk 0:00:54]}  Qg5+ {[%clk 0:00:39]} 34. Kh2 {[%clk 0:00:53]}  Qf4+ {[%clk 0:00:39]} 35. Kg1 {[%clk 0:00:51]}  Kf7 {[%clk 0:00:36]} 36. Rac1 {[%clk 0:00:49]}  Kf6 {[%clk 0:00:36]} 37. Rfe1 {[%clk 0:00:48]}  Kf5 {[%clk 0:00:35]} 38. Re3 {[%clk 0:00:48]}  e4 {[%clk 0:00:34]} 39. c3 {[%clk 0:00:38]}  d5 {[%clk 0:00:33]} 40. cxd5 {[%clk 0:00:36]}  exd5 {[%clk 0:00:32]} 41. cxb4 {[%clk 0:00:25]}  cxb4 {[%clk 0:00:32]} 42. Rc5 {[%clk 0:00:21]}  Ke6 {[%clk 0:00:30]} 43. Rc6+ {[%clk 0:00:15]}  Ke5 {[%clk 0:00:28]} 44. Rxa6 {[%clk 0:00:13]}  d4 {[%clk 0:00:28]} 45. Ra5+ {[%clk 0:00:12]}  Kd6 {[%clk 0:00:26]} 46. Ra6+ {[%clk 0:00:09]}  Kc7 {[%clk 0:00:26]} 47. Rg3 {[%clk 0:00:09]}  g5 {[%clk 0:00:23]} 48. Rh3 {[%clk 0:00:06]}  Kb7 {[%clk 0:00:22]} 49. Rg6 {[%clk 0:00:05]}  Qg4+ {[%clk 0:00:22]} 50. Kh2 {[%clk 0:00:04]}  Qf4+ {[%clk 0:00:22]} 51. Kg1 {[%clk 0:00:03]}  Qg4+ {[%clk 0:00:21]} 52. Kh2 {[%clk 0:00:03]}  Qf4+ {[%clk 0:00:16]} 53. Kg1 {[%clk 0:00:03]} 1/2-1/2


[Site "https://www.chess.com"]

[Event "Titled Tuesday Blitz October 31 Early 2023"]
[White "Kotlyar, Kirill"]
[Black "LiadCuba"]
[WhiteFideId "24145599"]
[WhiteElo "2542"]
[BlackElo "2362"]
[Result "1/2-1/2"]
[Round "4"]
[TimeControl "180+1"]
[Date "2023.10.31"]
[WhiteClock "0:00:03"]
[BlackClock "0:00:00"]
[Board "117"]

1. e4 {[%clk 0:02:57]}  c5 {[%clk 0:02:31]} 2. Nf3 {[%clk 0:02:55]}  d6 {[%clk 0:02:31]} 3. d4 {[%clk 0:02:55]}  cxd4 {[%clk 0:02:32]} 4. Qxd4 {[%clk 0:02:56]}  Nc6 {[%clk 0:02:32]} 5. Bb5 {[%clk 0:02:56]}  a6 {[%clk 0:02:32]} 6. Bxc6+ {[%clk 0:02:54]}  bxc6 {[%clk 0:02:33]} 7. c4 {[%clk 0:02:55]}  e5 {[%clk 0:02:28]} 8. Qd3 {[%clk 0:02:54]}  Be6 {[%clk 0:02:25]} 9. Nc3 {[%clk 0:02:54]}  Nf6 {[%clk 0:02:24]} 10. O-O {[%clk 0:02:51]}  Nd7 {[%clk 0:02:24]} 11. b3 {[%clk 0:02:41]}  Be7 {[%clk 0:02:21]} 12. Ba3 {[%clk 0:02:40]}  Qa5 {[%clk 0:02:13]} 13. Na4 {[%clk 0:01:57]}  Nb6 {[%clk 0:01:55]} 14. Nxb6 {[%clk 0:01:55]}  Qxb6 {[%clk 0:01:55]} 15. Bxd6 {[%clk 0:01:46]}  Rd8 {[%clk 0:01:37]} 16. c5 {[%clk 0:01:45]}  Qxc5 {[%clk 0:00:56]} 17. Bxc5 {[%clk 0:01:45]}  Rxd3 {[%clk 0:00:56]} 18. Bxe7 {[%clk 0:01:45]}  Kxe7 {[%clk 0:00:57]} 19. Nxe5 {[%clk 0:01:46]}  Rd2 {[%clk 0:00:50]} 20. Nxc6+ {[%clk 0:01:34]}  Kd6 {[%clk 0:00:50]} 21. Nb4 {[%clk 0:01:17]}  a5 {[%clk 0:00:49]} 22. Rad1 {[%clk 0:01:08]}  Rxd1 {[%clk 0:00:47]} 23. Rxd1+ {[%clk 0:01:09]}  Ke5 {[%clk 0:00:46]} 24. Nc6+ {[%clk 0:01:08]}  Kxe4 {[%clk 0:00:46]} 25. Nxa5 {[%clk 0:01:09]}  Ra8 {[%clk 0:00:46]} 26. Nb7 {[%clk 0:00:33]}  Rxa2 {[%clk 0:00:39]} 27. Nc5+ {[%clk 0:00:33]}  Ke5 {[%clk 0:00:40]} 28. Nxe6 {[%clk 0:00:34]}  Kxe6 {[%clk 0:00:38]} 29. Rb1 {[%clk 0:00:34]}  Kd5 {[%clk 0:00:37]} 30. b4 {[%clk 0:00:31]}  Kc6 {[%clk 0:00:38]} 31. g3 {[%clk 0:00:28]}  Kb5 {[%clk 0:00:25]} 32. Kg2 {[%clk 0:00:27]}  Ra4 {[%clk 0:00:22]} 33. Re1 {[%clk 0:00:15]}  Ra7 {[%clk 0:00:18]} 34. Re4 {[%clk 0:00:15]}  g6 {[%clk 0:00:14]} 35. Kh3 {[%clk 0:00:14]}  f5 {[%clk 0:00:14]} 36. Rd4 {[%clk 0:00:15]}  Rc7 {[%clk 0:00:13]} 37. Kh4 {[%clk 0:00:13]}  h6 {[%clk 0:00:12]} 38. g4 {[%clk 0:00:11]}  fxg4 {[%clk 0:00:11]} 39. Kxg4 {[%clk 0:00:12]}  Rf7 {[%clk 0:00:09]} 40. f4 {[%clk 0:00:11]}  Rf5 {[%clk 0:00:08]} 41. Rd6 {[%clk 0:00:11]}  h5+ {[%clk 0:00:05]} 42. Kg3 {[%clk 0:00:10]}  g5 {[%clk 0:00:05]} 43. fxg5 {[%clk 0:00:07]}  Rxg5+ {[%clk 0:00:06]} 44. Kh4 {[%clk 0:00:08]}  Rg2 {[%clk 0:00:05]} 45. h3 {[%clk 0:00:07]}  Kxb4 {[%clk 0:00:05]} 46. Rd5 {[%clk 0:00:07]}  Kc4 {[%clk 0:00:04]} 47. Rd1 {[%clk 0:00:08]}  Rh2 {[%clk 0:00:03]} 48. Kg3 {[%clk 0:00:05]}  Rb2 {[%clk 0:00:00]} 49. Kh4 {[%clk 0:00:03]} 1/2-1/2


[Site "https://www.chess.com"]